bitfinex/quotes_BTCUSD_20251201
["timestamp","ask_amount","ask_price","bid_price","bid_amount"]
[1764605149102,0.3810479,84689.0,84676.0,0.01180972]
[1764605149103,0.06083,84684.0,84674.0,0.23619792]
[1764605149310,0.55919722,84675.0,84674.0,8.766e-05]
[1764605149509,0.63150725,84675.0,84674.0,8.766e-05]
[1764605150699,0.63100725,84675.0,84674.0,8.766e-05]
[1764605151357,0.39531003,84675.0,84674.0,0.00408766]
[1764605151514,0.62002722,84675.0,84674.0,0.00408766]
[1764605152017,0.63150725,84675.0,84674.0,0.00408766]
[1764605153085,0.55919722,84675.0,84674.0,0.00408766]
[1764605153435,0.62002722,84675.0,84674.0,8.766e-05]
[1764605153760,0.63150725,84675.0,84674.0,8.766e-05]
[1764605153910,0.62002722,84675.0,84674.0,8.766e-05]
[1764605154509,0.38383,84675.0,84674.0,8.766e-05]
[1764605154710,0.62002722,84675.0,84674.0,8.766e-05]
[1764605155740,0.38383,84675.0,84674.0,0.00408766]
[1764605155946,0.38383,84675.0,84674.0,8.766e-05]
[1764605156313,0.38383,84675.0,84674.0,0.00408766]
[1764605156555,0.323,84675.0,84674.0,0.00408766]
[1764605157109,0.323,84675.0,84674.0,0.24028767]
[1764605157454,0.323,84675.0,84674.0,0.23628767]
[1764605158277,0.07721861,84689.0,84684.0,0.0118086]
[1764605158509,0.07110564,84689.0,84684.0,0.2479806]
[1764605158713,0.08291354,84689.0,84679.0,0.0118093]
[1764605158929,0.07110564,84689.0,84683.0,0.01180874]
[1764605159113,0.39410564,84689.0,84684.0,0.0118086]
[1764605159377,0.39410564,84689.0,84683.0,0.24798183]
[1764605159378,0.02486564,84688.0,84683.0,0.24798183]
[1764605159495,0.35950564,84688.0,84683.0,0.24798275]
[1764605159706,0.33464,84688.0,84683.0,0.01180874]
[1764605159929,0.09509,84687.0,84684.0,0.0118086]
[1764605160131,0.09509,84687.0,84674.0,0.01189766]
[1764605160339,0.55917467,84684.0,84675.0,0.01892]
[1764605160538,0.57065231,84684.0,84676.0,0.23619443]
[1764605160738,0.323,84683.0,84678.0,0.01180944]
[1764605160918,0.42989874,84683.0,84677.0,0.01180958]
[1764605161115,0.03312,84682.0,84678.0,0.01180944]
[1764605161320,0.03312,84682.0,84679.0,0.0118093]
[1764605161523,0.323,84683.0,84682.0,0.2361777]
[1764605161880,0.323,84684.0,84683.0,0.23617491]
[1764605162099,0.323,84684.0,84681.0,0.2479895]
[1764605162269,0.06259,84682.0,84677.0,0.24799864]
[1764605162471,0.01274003,84681.0,84677.0,0.01180958]
[1764605162630,0.03218,84683.0,84677.0,0.01180958]
[1764605162631,0.001,84683.0,84682.0,0.3007977]
[1764605162837,0.01180693,84696.0,84689.0,0.0118079]
[1764605163040,0.33629,84692.0,84685.0,0.23616689]
[1764605163245,0.02490031,84691.0,84688.0,0.01180804]
[1764605163444,0.02490031,84692.0,84691.0,0.2361526]
[1764605163845,0.02490031,84692.0,84688.0,0.01180804]
[1764605164067,0.02490031,84692.0,84689.0,0.0118079]
[1764605164264,0.02490031,84692.0,84689.0,0.24796576]
[1764605164488,0.02490031,84692.0,84690.0,0.23615422]
[1764605164688,0.02490031,84695.0,84694.0,0.23614423]
[1764605164899,0.2445,84701.0,84692.0,0.01180749]
[1764605164900,0.03097861,84706.0,84695.0,0.06462]
[1764605165128,0.02491372,84709.0,84705.0,0.24791804]
[1764605165300,0.02491372,84709.0,84707.0,0.23610799]
[1764605165558,0.02491372,84709.0,84708.0,0.2361052]
[1764605165864,0.04605,84714.0,84711.0,0.24690132]
[1764605166072,0.04605,84714.0,84713.0,0.23609127]
[1764605166268,0.04616546,84714.0,84713.0,0.23609127]
[1764605166532,0.00011546,84714.0,84713.0,0.23509127]
[1764605166893,0.00011546,84714.0,84707.0,0.24810486]
[1764605166894,0.06151546,84714.0,84707.0,0.012]
[1764605167092,0.0462,84708.0,84707.0,0.012]
[1764605167473,0.323,84713.0,84707.0,0.012]
[1764605167679,0.04605,84709.0,84706.0,0.24791491]
[1764605167875,0.0614,84707.0,84688.0,0.04737]
[1764605168266,0.01202,84678.0,84671.0,0.01181041]
[1764605168435,0.01202,84678.0,84674.0,0.24800781]
[1764605168858,0.01202,84678.0,84675.0,0.01180986]
[1764605169017,0.01202,84678.0,84663.0,0.01181153]
[1764605169230,0.01202,84678.0,84661.0,0.01181181]
[1764605169231,0.01181027,84672.0,84661.0,0.01181181]
[1764605169429,0.01181027,84672.0,84663.0,0.01181153]
[1764605169430,0.00188,84667.0,84663.0,0.01181153]
[1764605169629,0.323,84670.0,84666.0,0.01181111]
[1764605169829,0.323,84670.0,84669.0,0.23621396]
[1764605170414,0.01892,84676.0,84664.0,0.24803372]
[1764605170415,0.01181,84674.0,84664.0,0.24803372]
[1764605170617,0.01181,84674.0,84661.0,0.00038855]
[1764605170618,0.01181139,84664.0,84661.0,0.00038855]
[1764605170970,0.31030352,84662.0,84661.0,0.00038855]
[1764605171342,0.34260352,84662.0,84661.0,0.00038855]
[1764605171686,0.10637003,84662.0,84661.0,0.00038855]
[1764605171891,0.22159599,84662.0,84661.0,0.01638855]
[1764605172097,0.54459599,84662.0,84661.0,0.01638855]
[1764605172295,0.56950568,84662.0,84661.0,0.01638855]
[1764605172678,2.56950568,84662.0,84661.0,0.00038855]
[1764605173297,2.60048429,84662.0,84661.0,0.00038855]
[1764605173631,2.60048429,84662.0,84650.0,0.0004]
[1764605173632,0.57074422,84651.0,84650.0,0.0004]
[1764605173768,0.67755474,84651.0,84650.0,0.0004]
[1764605173964,0.77118474,84651.0,84650.0,0.0004]
[1764605174850,0.75970471,84651.0,84650.0,0.0004]
[1764605175049,0.77218474,84651.0,84650.0,0.0144]
[1764605175255,0.89928008,84651.0,84650.0,0.0144]
[1764605175480,2.89828008,84651.0,84650.0,0.0004]
[1764605175675,2.89928008,84651.0,84650.0,0.0134]
[1764605175880,0.323,84631.0,84630.0,0.0004]
[1764605176082,0.55976002,84631.0,84630.0,0.0004]
[1764605176500,0.66761005,84631.0,84630.0,0.0004]
[1764605177104,2.69243825,84631.0,84630.0,0.0004]
[1764605177302,0.55934795,84621.0,84620.0,0.0004]
[1764605177517,2.60612798,84621.0,84620.0,0.0004]
[1764605177723,2.72693937,84621.0,84620.0,0.0004]
[1764605177900,2.72693937,84621.0,84610.0,0.0001]
[1764605177901,0.72693937,84621.0,84610.0,0.0001]
[1764605178104,0.55940382,84601.0,84600.0,0.0002]
[1764605178322,0.57910382,84601.0,84600.0,0.0002]
[1764605178503,0.65807441,84601.0,84600.0,0.0002]
[1764605178938,0.32417059,84601.0,84600.0,0.0002]
[1764605179241,0.42167059,84601.0,84600.0,0.0002]
[1764605179414,2.50132191,84601.0,84600.0,0.0002]
[1764605179827,2.50232191,84601.0,84600.0,0.0002]
[1764605180192,2.50232191,84601.0,84590.0,0.0004]
[1764605180193,0.55943177,84591.0,84590.0,0.0004]
[1764605180398,0.57914177,84591.0,84590.0,0.0004]
[1764605180725,0.40237,84591.0,84590.0,0.0004]
[1764605180932,0.42129,84591.0,84590.0,0.0004]
[1764605181376,0.40237,84591.0,84590.0,0.0004]
[1764605181607,0.34371,84591.0,84590.0,0.0084]
[1764605181979,0.34292,84591.0,84590.0,0.0084]
[1764605182300,0.34448,84591.0,84590.0,0.0084]
[1764605182522,0.42229,84591.0,84590.0,0.0084]
[1764605182864,0.324,84591.0,84590.0,0.0084]
[1764605183754,0.323,84591.0,84590.0,0.0004]
[1764605183958,0.00039059,84601.0,84599.0,0.23640941]
[1764605184474,0.00039059,84601.0,84599.0,0.32572941]
[1764605184678,0.00039059,84601.0,84600.0,0.0019385]
[1764605185253,0.11009823,84615.0,84600.0,0.0019385]
[1764605185254,0.03110538,84650.0,84649.0,0.23626977]
[1764605185381,0.04763,84653.0,84649.0,0.08161065]
[1764605185584,0.06655,84650.0,84649.0,8.766e-05]
[1764605185823,0.06655,84650.0,84649.0,0.23635743]
[1764605186023,0.1648,84650.0,84649.0,0.23635743]
[1764605186228,0.06655,84650.0,84649.0,0.23635743]
[1764605186803,0.04763,84653.0,84652.0,0.23626139]
[1764605187014,0.04763,84653.0,84649.0,0.23635743]
[1764605187015,0.06655,84650.0,84649.0,8.766e-05]
[1764605187218,2.40103003,84650.0,84649.0,8.766e-05]
[1764605187435,0.06655,84637.0,84636.0,0.21230533]
[1764605187641,0.06655,84636.0,84635.0,0.23630685]
[1764605187804,0.06655,84636.0,84635.0,0.00011712]
[1764605188027,0.06655,84636.0,84608.0,0.24820132]
[1764605188028,0.33481711,84623.0,84608.0,0.24820132]
[1764605188405,0.02776,84615.0,84613.0,0.23636953]
[1764605189338,0.48492,84614.0,84613.0,0.23636953]
[1764605189951,0.323,84613.0,84607.0,0.01181935]
[1764605190147,0.01148003,84612.0,84610.0,0.23637816]
[1764605190448,0.48492,84613.0,84610.0,0.24819709]
[1764605190673,0.38576,84611.0,84610.0,0.24819709]
[1764605190993,0.38576,84611.0,84609.0,0.01181907]
[1764605190994,0.38576,84611.0,84609.0,0.23638011]
[1764605191173,0.48492,84611.0,84610.0,0.00160975]
[1764605191374,0.323,84611.0,84610.0,0.00160975]
[1764605191561,0.06276,84611.0,84610.0,0.01260975]
[1764605191757,0.001,84613.0,84611.0,0.23637588]
[1764605191960,0.06276,84612.0,84611.0,0.23637588]
[1764605192341,0.323,84611.0,84610.0,0.012]
[1764605192543,0.323,84610.0,84580.0,0.0004]
[1764605192854,0.323,84610.0,84598.0,0.24823281]
[1764605192855,0.323,84599.0,84598.0,0.24823281]
[1764605193056,0.39758047,84599.0,84590.0,0.01222172]
[1764605193261,0.38576,84591.0,84590.0,0.0004]
[1764605193479,0.49412338,84591.0,84590.0,0.0004]
[1764605193660,0.49412338,84591.0,84580.0,0.0004]
[1764605193661,0.33482186,84589.0,84580.0,0.0004]
[1764605193862,0.39724003,84587.0,84580.0,0.0004]
[1764605194126,0.48492,84587.0,84580.0,0.0004]
[1764605194412,0.49651711,84587.0,84580.0,0.0004]
[1764605194635,0.49651711,84587.0,84545.0,0.11890819]
[1764605194636,0.01182522,84565.0,84548.0,0.0118276]
[1764605194927,0.323,84559.0,84553.0,0.0118269]
[1764605195131,0.323,84559.0,84555.0,0.01182662]
[1764605195347,0.323,84559.0,84554.0,0.01182676]
[1764605195514,0.323,84559.0,84550.0,0.23654622]
[1764605195515,0.01182774,84547.0,84531.0,0.01182997]
[1764605195719,0.01182774,84547.0,84475.0,0.11890819]
[1764605195720,0.323,84546.0,84541.0,0.01182858]
[1764605195922,0.323,84546.0,84540.0,0.01182872]
[1764605195923,0.323,84546.0,84543.0,0.0118283]
[1764605196090,0.323,84546.0,84538.0,0.01182899]
[1764605196091,0.04927,84564.0,84558.0,0.24834901]
[1764605196476,0.001,84559.0,84558.0,0.23652404]
[1764605196670,0.00011704,84564.0,84563.0,0.23651005]
[1764605197018,0.00011704,84564.0,84561.0,0.24834062]
[1764605197254,0.00011704,84564.0,84556.0,0.01182648]
[1764605197255,0.323,84563.0,84550.0,0.01182732]
[1764605197439,0.06276,84560.0,84549.0,0.01182746]
[1764605197645,0.324,84559.0,84558.0,0.014]
[1764605197846,2.42316,84559.0,84558.0,0.014]
[1764605198040,2.48592,84559.0,84558.0,0.014]
[1764605198370,2.49740003,84559.0,84558.0,0.014]
[1764605198581,2.60114596,84559.0,84558.0,0.014]
[1764605198939,2.49740003,84559.0,84558.0,0.014]
[1764605199148,0.50492,84559.0,84558.0,0.014]
[1764605199342,0.50392,84559.0,84558.0,0.00332011]
[1764605199552,0.48492,84559.0,84558.0,0.00332011]
[1764605200182,0.06276,84559.0,84558.0,0.00332011]
[1764605200378,0.001,84559.0,84558.0,0.01432011]
[1764605200587,0.00011704,84564.0,84559.0,0.01182606]
[1764605200792,0.00011704,84564.0,84557.0,0.2483522]
[1764605201124,0.001,84559.0,84558.0,0.011]
[1764605201289,0.323,84561.0,84555.0,0.01182662]
[1764605201456,0.323,84561.0,84558.0,0.00332011]
[1764605201660,0.323,84561.0,84558.0,0.0118262]
[1764605202082,0.0118255,84563.0,84557.0,0.01182634]
[1764605202293,0.06276,84557.0,84554.0,0.01182676]
[1764605202504,0.09916,84563.0,84560.0,0.01182592]
[1764605202505,0.323,84563.0,84560.0,0.01182592]
[1764605202704,0.323,84563.0,84554.0,0.01182676]
[1764605202705,0.06276,84555.0,84547.0,0.01182774]
[1764605202953,0.33482564,84562.0,84552.0,0.23654026]
[1764605202954,0.06276,84554.0,84552.0,0.23654026]
[1764605203158,0.323,84559.0,84551.0,0.24836768]
[1764605203365,0.323,84559.0,84555.0,0.01182662]
[1764605203503,0.33482606,84559.0,84553.0,0.0118269]
[1764605203906,0.0118262,84558.0,84549.0,0.01182746]
[1764605204128,0.0118262,84558.0,84551.0,0.01182718]
[1764605204373,0.0118262,84558.0,84546.0,0.23655698]
[1764605204374,0.01182634,84557.0,84546.0,0.23655698]
[1764605204662,1.06004732,84556.0,84546.0,0.01182788]
[1764605204971,0.323,84555.0,84540.0,0.01182872]
[1764605205142,0.323,84555.0,84553.0,0.23653802]
[1764605205346,0.323,84555.0,84546.0,0.01182788]
[1764605205347,0.323,84555.0,84524.0,0.24844908]
[1764605205348,0.323,84540.0,84524.0,0.24844908]
[1764605205513,0.019,84551.0,84545.0,0.23655875]
[1764605205718,0.38576,84553.0,84544.0,0.01182816]
[1764605205719,0.323,84553.0,84549.0,0.01182746]
[1764605205957,0.323,84553.0,84548.0,0.0118276]
[1764605206363,0.323,84553.0,84551.0,0.23654331]
[1764605206569,0.323,84559.0,84555.0,0.01182662]
[1764605206740,0.45005202,84559.0,84549.0,0.015]
[1764605206957,0.06376,84553.0,84549.0,0.015]
[1764605207148,0.45005202,84559.0,84541.0,0.01182858]
[1764605207149,0.33482746,84549.0,84541.0,0.01182858]
[1764605207431,0.06276,84538.0,84529.0,0.01183025]
[1764605207786,0.06276,84538.0,84532.0,0.01182983]
[1764605207787,0.43503,84538.0,84532.0,0.01182983]
[1764605207987,0.53419,84538.0,84531.0,0.24842698]
[1764605208193,0.63918869,84538.0,84526.0,0.24844386]
[1764605208339,0.53419,84538.0,84520.0,0.01183151]
[1764605208529,0.53430697,84538.0,84528.0,0.01183039]
[1764605208771,0.53430697,84538.0,84525.0,0.01183081]
[1764605209146,0.545787,84538.0,84537.0,0.00420242]
[1764605209425,0.53430697,84538.0,84537.0,0.00420242]
[1764605209617,0.66201296,84538.0,84537.0,0.02120242]
[1764605209799,0.65053293,84538.0,84537.0,0.02120242]
[1764605210002,2.65053293,84538.0,84537.0,0.02120242]
[1764605210207,2.65053293,84538.0,84501.0,0.01183417]
[1764605210208,2.0,84518.0,84501.0,0.01183417]
[1764605210408,2.0,84518.0,84500.0,10.23668606]
[1764605210409,0.04927,84501.0,84500.0,10.0]
[1764605210671,0.23665956,84510.0,84509.0,0.23666118]
[1764605210672,0.323,84510.0,84509.0,0.23666118]
[1764605210869,0.323,84510.0,84504.0,0.01183375]
[1764605211120,0.323,84510.0,84507.0,0.01183333]
[1764605211322,0.06276,84508.0,84498.0,0.01183459]
[1764605211486,0.323,84508.0,84504.0,0.01183375]
[1764605211823,0.32311691,84508.0,84505.0,0.01183361]
[1764605212187,0.38576,84506.0,84500.0,10.0]
[1764605212499,0.00211691,84508.0,84506.0,0.23666936]
[1764605212904,0.00211691,84508.0,84501.0,0.23668358]
[1764605212905,0.17375333,84507.0,84501.0,0.01183417]
[1764605213101,0.06276,84506.0,84505.0,0.013]
[1764605213316,0.00211691,84508.0,84505.0,0.013]
[1764605213531,0.00011691,84508.0,84502.0,0.01183403]
[1764605213725,0.00011691,84508.0,84500.0,10.01183431]
[1764605213726,0.06276,84506.0,84500.0,10.0]
[1764605213927,0.06276,84506.0,84503.0,0.01183389]
[1764605214129,0.00011691,84508.0,84505.0,0.00506551]
[1764605214456,0.0641,84501.0,84500.0,10.01183431]
[1764605214655,0.1094,84501.0,84500.0,10.01183431]
[1764605214857,0.0453,84501.0,84500.0,10.0]
[1764605215020,0.19968,84501.0,84500.0,10.0]
[1764605215441,2.56402467,84501.0,84500.0,10.0]
[1764605215645,2.55316003,84501.0,84500.0,10.0]
[1764605215843,2.55316003,84501.0,84500.0,10.001]
[1764605216051,2.34661934,84501.0,84500.0,10.001]
[1764605216259,2.37711934,84501.0,84500.0,10.001]
[1764605216630,2.36563931,84501.0,84500.0,10.001]
[1764605217254,0.60918358,84501.0,84500.0,10.001]
[1764605217455,0.60918358,84501.0,84500.0,10.0]
[1764605217812,0.3725,84501.0,84500.0,10.0]
[1764605218014,0.3725,84501.0,84500.0,10.001]
[1764605218138,0.38398003,84501.0,84500.0,10.001]
[1764605218547,2.3725,84501.0,84500.0,10.0]
[1764605218752,2.49920599,84501.0,84500.0,10.0]
[1764605218954,2.38398003,84501.0,84500.0,10.0]
[1764605219182,2.38398003,84501.0,84500.0,8.5631]
[1764605219350,2.43207503,84501.0,84500.0,8.5631]
[1764605219579,2.45670255,84501.0,84500.0,8.5631]
[1764605219776,2.45670255,84501.0,84500.0,8.4791]
[1764605220185,2.3725,84501.0,84500.0,8.48433029]
[1764605220461,2.06098003,84501.0,84500.0,8.48433029]
[1764605220711,2.0495,84501.0,84500.0,8.48433029]
[1764605220920,2.12450302,84501.0,84500.0,8.48433029]
[1764605221133,2.43602299,84501.0,84500.0,8.48433029]
[1764605221379,2.52385541,84501.0,84500.0,8.48433029]
[1764605221727,2.57489837,84501.0,84500.0,8.48433029]
[1764605221929,2.57489837,84501.0,84500.0,7.86409672]
[1764605222131,2.5863784,84501.0,84500.0,7.86409672]
[1764605222333,2.42658583,84501.0,84500.0,7.86409672]
[1764605222539,2.40962945,84501.0,84500.0,7.86409672]
[1764605222955,2.47215244,84501.0,84500.0,7.86409672]
[1764605223214,2.46067241,84501.0,84500.0,7.13919295]
[1764605223464,2.5873784,84501.0,84500.0,6.22565521]
[1764605223692,2.64035303,84501.0,84500.0,6.22565521]
[1764605223868,2.40862945,84501.0,84500.0,6.22565521]
[1764605224106,2.40962945,84501.0,84500.0,6.22565521]
[1764605224560,2.47215244,84501.0,84500.0,6.22565521]
[1764605224973,2.49958885,84501.0,84500.0,6.22565521]
[1764605225186,2.64035303,84501.0,84500.0,6.22565521]
[1764605225380,2.5873784,84501.0,84500.0,5.60517038]
[1764605225563,2.61581481,84501.0,84500.0,5.45925408]
[1764605225918,2.65992129,84501.0,84500.0,5.45925408]
[1764605226502,2.60594666,84501.0,84500.0,5.45925408]
[1764605226704,2.5863784,84501.0,84500.0,5.45925408]
[1764605227090,2.5873784,84501.0,84500.0,5.43825408]
[1764605227649,2.52385541,84501.0,84500.0,5.43825408]
[1764605227820,2.52485541,84501.0,84500.0,5.43825408]
[1764605228235,2.57589837,84501.0,84500.0,5.43825408]
[1764605228417,2.5863784,84501.0,84500.0,5.43825408]
[1764605228631,2.61581481,84501.0,84500.0,5.43825408]
[1764605228811,2.5873784,84501.0,84500.0,5.43825408]
[1764605229013,0.5873784,84501.0,84500.0,5.43825408]
[1764605229215,2.51337538,84501.0,84500.0,5.43825408]
[1764605229398,2.52485541,84501.0,84500.0,5.43825408]
[1764605229601,2.5873784,84501.0,84500.0,5.43825408]
[1764605229818,2.5863784,84501.0,84500.0,5.43825408]
[1764605230241,2.5873784,84501.0,84500.0,4.89869247]
[1764605230481,2.61581481,84501.0,84500.0,4.59179565]
[1764605230701,2.61481481,84501.0,84500.0,3.69824448]
[1764605230865,2.08562945,84501.0,84500.0,3.69824448]
[1764605231200,2.3735,84501.0,84500.0,3.69824448]
[1764605231351,2.38398003,84501.0,84500.0,3.69824448]
[1764605231513,2.37686,84501.0,84500.0,3.69824448]
[1764605231727,2.05586,84501.0,84500.0,3.69824448]
[1764605231929,2.06734003,84501.0,84500.0,3.69824448]
[1764605232187,0.002,84501.0,84500.0,3.69824448]
[1764605232843,0.00011691,84508.0,84507.0,0.23666678]
[1764605233045,0.00011691,84508.0,84507.0,0.31730678]
[1764605233278,0.00011691,84508.0,84507.0,0.00499961]
[1764605233415,0.00011691,84508.0,84507.0,0.02407961]
[1764605233618,0.00011691,84508.0,84507.0,0.07518829]
[1764605233824,0.00011691,84508.0,84507.0,0.02307961]
[1764605234067,0.00011691,84508.0,84507.0,0.00399961]
[1764605234470,0.00011691,84508.0,84507.0,0.00499961]
[1764605235166,0.00011691,84508.0,84507.0,0.00399961]
[1764605235386,0.00011691,84508.0,84507.0,0.16272961]
[1764605235588,0.00011691,84508.0,84507.0,0.27088394]
[1764605235912,0.00011691,84508.0,84507.0,0.33340693]
[1764605236036,0.00011691,84508.0,84507.0,0.34488792]
[1764605236675,0.00011691,84508.0,84507.0,0.00499961]
[1764605236883,0.00011691,84508.0,84507.0,0.00399961]
[1764605237304,0.04961691,84508.0,84507.0,0.00399961]
[1764605237695,0.04961691,84508.0,84507.0,0.00599961]
[1764605238065,2.37261691,84508.0,84507.0,0.00399961]
[1764605238271,2.38409694,84508.0,84507.0,0.00399961]
[1764605238477,2.38409694,84508.0,84507.0,0.00499961]
[1764605238690,2.40884852,84508.0,84507.0,0.00499961]
[1764605239108,0.01183389,84503.0,84500.0,3.6900138]
[1764605239317,2.33497003,84501.0,84500.0,3.6900138]
[1764605239735,2.63394732,84501.0,84500.0,3.6900138]
[1764605239955,2.62066361,84501.0,84500.0,3.6900138]
[1764605240168,2.3725,84501.0,84500.0,3.6900138]
[1764605240386,2.40875286,84501.0,84500.0,3.6900138]
[1764605240630,2.39727283,84501.0,84500.0,3.6900138]
[1764605240826,2.47127585,84501.0,84500.0,3.6900138]
[1764605241375,2.39727283,84501.0,84500.0,3.6900138]
[1764605241745,2.40875286,84501.0,84500.0,3.6900138]
[1764605242759,2.45103988,84501.0,84500.0,3.6900138]
[1764605243094,2.47127585,84501.0,84500.0,3.6900138]
[1764605243447,2.47227585,84501.0,84500.0,3.6900138]
[1764605243871,2.47127585,84501.0,84500.0,3.6900138]
[1764605244288,2.47227585,84501.0,84500.0,3.6900138]
[1764605244462,2.47227585,84501.0,84500.0,3.62595082]
[1764605244694,2.49084473,84501.0,84500.0,3.62595082]
[1764605244900,0.49084473,84501.0,84500.0,3.62595082]
[1764605245141,2.49084473,84501.0,84500.0,3.62595082]
[1764605245545,2.48984473,84501.0,84500.0,3.62595082]
[1764605245926,2.49084473,84501.0,84500.0,3.62595082]
[1764605246263,2.49084473,84501.0,84500.0,3.53795082]
[1764605246891,2.39827283,84501.0,84500.0,3.53795082]
[1764605247256,2.40975286,84501.0,84500.0,3.53795082]
[1764605247480,2.39827283,84501.0,84500.0,3.53795082]
[1764605247676,2.4407118,84501.0,84500.0,3.53795082]
[1764605247883,2.40975286,84501.0,84500.0,3.53795082]
[1764605248363,2.44071222,84501.0,84500.0,3.53795082]
[1764605248529,2.40875286,84501.0,84500.0,3.53795082]
[1764605248877,2.49084415,84501.0,84500.0,3.53795082]
[1764605249195,2.48984415,84501.0,84500.0,3.53795082]
[1764605249555,2.49084415,84501.0,84500.0,3.53795082]
[1764605250201,2.48984415,84501.0,84500.0,2.82046596]
[1764605250410,2.48984415,84501.0,84500.0,2.71896438]
[1764605250609,2.49084415,84501.0,84500.0,2.46949849]
[1764605250844,2.49084415,84501.0,84500.0,2.16996539]
[1764605251106,2.49084415,84501.0,84435.0,4.004e-05]
[1764605251107,0.291472,84450.0,84435.0,4.004e-05]
[1764605251312,0.291472,84450.0,84437.0,0.01184314]
[1764605251522,0.291472,84450.0,84439.0,0.01184286]
[1764605251726,0.291472,84450.0,84444.0,0.01184216]
[1764605251932,0.291472,84450.0,84443.0,0.0118423]
[1764605252138,0.291472,84450.0,84445.0,0.24868158]
[1764605252339,0.291472,84450.0,84442.0,0.24869113]
[1764605252644,0.291472,84450.0,84443.0,0.24868842]
[1764605252851,0.291472,84450.0,84439.0,0.24869989]
[1764605252852,0.291472,84450.0,84439.0,0.01184286]
[1764605253262,0.291472,84450.0,84443.0,0.0118423]
[1764605253481,0.291472,84450.0,84436.0,0.01184328]
[1764605253697,0.3746,84449.0,84435.0,4.004e-05]
[1764605253898,0.323,84439.0,84435.0,4.004e-05]
[1764605254100,0.291472,84436.0,84435.0,4.004e-05]
[1764605254339,0.24865698,84454.0,84435.0,4.004e-05]
[1764605254340,0.291472,84447.0,84436.0,0.01184328]
[1764605254553,0.291472,84447.0,84443.0,0.0118423]
[1764605254554,0.323,84447.0,84443.0,0.0118423]
[1764605254749,0.614472,84445.0,84444.0,0.24868551]
[1764605255007,0.323,84451.0,84449.0,0.01184146]
[1764605255228,0.614472,84450.0,84449.0,0.24866926]
[1764605255428,0.291472,84448.0,84447.0,0.24867667]
[1764605255601,0.614472,84451.0,84450.0,0.23682652]
[1764605255805,0.614472,84451.0,84449.0,0.01184146]
[1764605255806,0.05464548,84450.0,84449.0,0.01184146]
[1764605256013,0.05464548,84450.0,84443.0,0.001]
[1764605256212,0.05464548,84450.0,84448.0,0.23683212]
[1764605256407,0.05464548,84450.0,84447.0,0.01184174]
[1764605256624,0.42915548,84450.0,84449.0,0.001]
[1764605256953,0.05464548,84459.0,84449.0,0.23947662]
[1764605257108,0.05464548,84463.0,84453.0,0.0118409]
[1764605257265,0.05464548,84463.0,84458.0,0.23680376]
[1764605257467,0.05464548,84463.0,84459.0,0.24864046]
[1764605257665,0.05464548,84464.0,84459.0,0.24864083]
[1764605257927,0.05464548,84464.0,84460.0,0.24863735]
[1764605258087,0.05464548,84464.0,84458.0,0.0118402]
[1764605258088,0.05464548,84464.0,84459.0,0.01184006]
[1764605258281,0.05464548,84464.0,84455.0,0.01184062]
[1764605258282,0.05464548,84464.0,84455.0,0.24865274]
[1764605258508,0.05464548,84464.0,84460.0,0.01183992]
[1764605258713,0.05464548,84464.0,84458.0,0.24864374]
[1764605258921,0.05464548,84460.0,84458.0,0.24864374]
[1764605259130,0.05464548,84464.0,84459.0,0.01184006]
[1764605259330,0.05464548,84463.0,84459.0,0.01184006]
[1764605259538,0.05464548,84462.0,84459.0,0.01184006]
[1764605259742,0.05464548,84462.0,84460.0,0.23679818]
[1764605259942,0.05464548,84461.0,84460.0,0.23679818]
[1764605260217,0.05464548,84462.0,84461.0,0.23679568]
[1764605260389,0.05464548,84462.0,84459.0,0.001]
[1764605260626,0.05464548,84462.0,84459.0,0.01284006]
[1764605260859,0.05464548,84466.0,84462.0,0.01183964]
[1764605261059,0.05464548,84466.0,84462.0,0.24863167]
[1764605261233,0.37764548,84466.0,84462.0,0.24863241]
[1764605261462,0.37764548,84465.0,84464.0,0.23678727]
[1764605261690,0.05464548,84465.0,84464.0,0.23678727]
[1764605261900,0.04449,84473.0,84470.0,0.01183852]
[1764605262106,0.09913548,84473.0,84472.0,0.23676484]
[1764605262329,0.04255,84480.0,84472.0,0.23676484]
[1764605262330,0.05464548,84478.0,84472.0,0.23676484]
[1764605262586,0.05464548,84484.0,84472.0,0.01183824]
[1764605262784,0.05464548,84484.0,84478.0,0.0118374]
[1764605262985,0.05464548,84484.0,84477.0,0.01183754]
[1764605263194,0.05464548,84484.0,84477.0,0.24858802]
[1764605263423,0.05464548,84484.0,84480.0,0.01183712]
[1764605263638,0.05464548,84484.0,84481.0,0.01183698]
[1764605263867,0.05464548,84489.0,84484.0,0.01183656]
[1764605264101,0.05464548,84490.0,84486.0,0.01183628]
[1764605264324,0.07368907,84512.0,84501.0,0.01183417]
[1764605264325,0.05464548,84506.0,84501.0,0.01183417]
[1764605264541,0.05464548,84506.0,84497.0,0.01183473]
[1764605264542,0.05464548,84506.0,84499.0,0.01183445]
[1764605264775,0.05464548,84506.0,84502.0,0.01183403]
[1764605264994,0.05464548,84506.0,84499.0,0.01183445]
[1764605264995,0.05464548,84506.0,84498.0,0.23669014]
[1764605265208,0.05464548,84506.0,84494.0,0.24853642]
[1764605265427,0.05464548,84506.0,84501.0,0.001]
[1764605265851,0.05464548,84506.0,84500.0,0.24852024]
[1764605266066,0.05464548,84506.0,84502.0,0.01183403]
[1764605266288,0.05464548,84511.0,84504.0,0.01183375]
[1764605266509,0.05464548,84511.0,84507.0,0.01183333]
[1764605266721,0.05464548,84511.0,84505.0,0.24850475]
[1764605266919,0.05464548,84511.0,84505.0,0.01183361]
[1764605267076,0.05464548,84511.0,84491.0,0.01183558]
[1764605267414,0.05464548,84511.0,84506.0,0.23666864]
[1764605267557,0.05464548,84511.0,84506.0,0.24850211]
[1764605267763,0.05464548,84511.0,84505.0,0.01183361]
[1764605268005,0.05464548,84511.0,84505.0,0.24850485]
[1764605268203,0.05464548,84513.0,84506.0,0.24850275]
[1764605268403,0.323,84514.0,84504.0,0.01183375]
[1764605268404,0.05464548,84514.0,84504.0,0.01183375]
[1764605268619,0.05464548,84514.0,84505.0,0.01183361]
[1764605268796,0.05464548,84514.0,84505.0,0.24850498]
[1764605269022,0.05464548,84514.0,84500.0,0.01904]
[1764605269023,0.04843,84506.0,84473.0,0.09308]
[1764605269358,0.04843,84506.0,84489.0,0.01183586]
[1764605269359,0.37764548,84499.0,84489.0,0.01183586]
[1764605269505,0.05464548,84497.0,84489.0,0.24855295]
[1764605269800,0.05464548,84497.0,84489.0,0.01183586]
[1764605269971,0.05464548,84497.0,84490.0,0.01183572]